bitfinex-derivatives/quotes_SOLF0:USTF0_20251023
["timestamp","ask_amount","ask_price","bid_price","bid_amount"]
[1761205225802,1.26970756,187.17,187.1,4.8088]
[1761205226203,4.17970756,187.18,187.1,4.8088]
[1761205227109,4.17970756,187.18,187.11,1.26970756]
[1761205227707,2.91,187.18,187.11,1.26970756]
[1761205228007,2.91,187.18,187.1,6.07850756]
[1761205228402,4.17970756,187.17,187.1,6.07850756]
[1761205228711,2.91,187.17,187.1,6.07850756]
[1761205229415,1.26970756,187.18,187.1,6.07850756]
[1761205229603,2.89,187.2,187.1,6.07850756]
[1761205229803,1.26970756,187.18,187.1,6.07850756]
[1761205230507,2.89,187.19,187.13,1.26970756]
[1761205233098,2.89,187.19,187.13,6.07780756]
[1761205234111,2.89,187.23,187.15,1.26970756]
[1761205234698,2.89,187.21,187.13,4.8081]
[1761205236012,7.6964,187.21,187.13,4.8081]
[1761205236605,7.6964,187.21,187.13,6.78551517]
[1761205238602,4.8064,187.21,187.13,6.78551517]
[1761205238802,2.89,187.2,187.13,6.78551517]
[1761205240117,2.89,187.2,187.14,4.8078]
[1761205241402,2.89,187.18,187.12,4.8084]
[1761205241606,2.89,187.18,187.1,1.97741517]
[1761205242812,2.89,187.25,187.13,1.97741517]
[1761205244111,2.89,187.25,187.14,4.8078]
[1761205246918,2.89,187.22,187.12,4.8085]
[1761205247814,2.89,187.22,187.08,1.97741517]
[1761205249020,2.89,187.22,187.1,4.8089]
[1761205250221,2.89,187.19,187.05,4.95727453]
[1761205250420,2.89,187.13,187.02,1.97741517]
[1761205251119,2.89,187.13,187.02,6.9346897]
[1761205252116,2.89,187.13,187.03,4.8106]
[1761205252313,2.89,187.13,187.02,4.95727453]
[1761205252520,2.89,187.13,187.01,4.95727453]
[1761205254212,2.89,187.13,187.01,9.76847453]
[1761205254418,2.89,187.13,187.02,4.95727453]
[1761205255122,2.89,187.13,187.01,9.76847453]
[1761205256323,2.89,187.13,187.01,4.95727453]
[1761205256524,2.89,187.13,187.0,6.9346897]
[1761205256712,2.89,187.1,187.0,6.9346897]
[1761205256918,2.89,187.1,187.0,1.97741517]
[1761205259026,2.89,187.1,186.98,4.95727453]
[1761205259228,2.89,187.1,186.97,11.7468897]
[1761205260725,2.89,187.1,186.98,4.95727453]
[1761205260927,2.89,187.1,187.01,1.97741517]
[1761205261830,2.89,187.1,187.04,1.97741517]
[1761205264633,2.66,187.13,187.08,1.97741517]
[1761205265036,2.66,187.13,187.03,1.97741517]
[1761205265236,2.66,187.13,187.0,1.97741517]
[1761205265542,2.66,187.1,187.0,1.97741517]
[1761205266644,2.66,187.1,187.0,6.78881517]
[1761205267335,2.66,187.1,187.01,4.8111]
[1761205267841,2.66,187.1,187.03,1.97741517]
[1761205269039,2.66,187.1,187.0,1.97741517]
[1761205269343,2.66,187.1,186.99,4.8118]
[1761205269544,2.66,187.1,186.99,6.78921517]
[1761205271032,2.66,187.1,186.99,1.97741517]
[1761205271241,2.66,187.08,186.96,6.78991517]
[1761205271546,2.66,187.08,186.91,4.95727453]
[1761205271743,2.66,187.05,186.94,1.97741517]
[1761205272545,2.66,187.05,186.94,6.79041517]
[1761205272745,2.66,187.05,186.97,1.97741517]
[1761205274548,2.66,187.05,186.94,1.97741517]
[1761205275753,2.66,187.05,186.9,4.95727453]
[1761205275949,2.66,187.05,186.91,1.97741517]
[1761205276750,1.97741517,187.13,187.0,1.97741517]
[1761205276951,2.66,187.12,187.0,1.97741517]
[1761205277153,2.66,187.12,187.03,1.97741517]
[1761205278644,2.66,187.17,187.09,1.97741517]
[1761205278850,2.66,187.17,187.12,1.97741517]
[1761205280844,2.66,187.17,187.09,1.97741517]
[1761205281046,1.97741517,187.16,187.04,1.97741517]
[1761205281244,2.66,187.15,187.07,1.97741517]
[1761205281856,2.66,187.15,187.04,1.97741517]
[1761205282658,2.66,187.15,186.98,5.31155372]
[1761205283963,2.66,187.15,187.0,4.8114]
[1761205289056,2.66,187.15,187.0,9.76867453]
[1761205289452,2.66,187.15,187.0,4.8114]
[1761205290157,2.66,187.15,187.01,4.95727453]
[1761205290460,2.66,187.15,187.0,9.76867453]
[1761205290666,2.66,187.15,187.0,4.8114]
[1761205291059,2.66,187.15,187.0,9.76867453]
[1761205291260,2.66,187.15,187.0,4.95727453]
[1761205291571,2.88,187.09,186.97,4.95727453]
[1761205291765,2.88,187.09,186.96,4.95727453]
[1761205293969,2.88,187.09,186.95,4.95727453]
[1761205293970,16.04,187.09,186.95,4.95727453]
[1761205294271,2.88,187.08,186.96,4.97333565]
[1761205295159,2.88,187.07,186.95,4.97333565]
[1761205295469,2.88,187.06,186.92,4.97333565]
[1761205296170,2.88,187.06,186.91,9.78723565]
[1761205300175,2.88,187.05,186.91,4.97333565]
[1761205300375,2.88,187.04,186.88,13.01771216]
[1761205300967,2.88,187.02,186.87,8.20321216]
[1761205301367,2.88,187.02,186.87,3.22987651]
[1761205302771,1.26892161,187.0,186.92,1.26892161]
[1761205302975,2.88,186.99,186.92,1.26892161]
[1761205303176,2.88,186.99,186.86,49.6152]
[1761205303379,2.88,186.97,186.9,1.26892161]
[1761205305472,2.88,186.97,186.86,44.8]
[1761205305765,2.88,186.95,186.89,1.26892161]
[1761205305966,2.88,186.93,186.82,4.97333565]
[1761205306171,2.88,186.91,186.84,1.26892161]
[1761205307474,2.88,186.91,186.79,9.79023565]
[1761205307679,4.9834404,187.01,186.74,9.79163565]
[1761205307680,2.88,186.87,186.74,9.79163565]
[1761205307976,2.88,186.91,186.86,1.26892161]
[1761205309075,2.88,186.91,186.84,1.26892161]
[1761205309275,2.88,186.91,186.85,1.26892161]
[1761205309473,2.88,186.91,186.72,9.93535924]
[1761205309474,2.88,186.9,186.84,1.26892161]
[1761205311275,2.88,186.96,186.88,1.26892161]
[1761205311673,17.30892161,186.97,186.77,4.97333565]
[1761205311674,2.88,186.94,186.77,4.97333565]
[1761205311878,2.88,186.94,186.86,1.26892161]
[1761205312272,2.88,186.94,186.88,1.26892161]
[1761205314383,2.88,186.94,186.86,1.26892161]
[1761205315770,2.88,186.94,186.8,4.8166]
[1761205315977,2.88,186.94,186.86,1.26892161]
[1761205316378,2.88,186.94,186.88,1.26892161]
[1761205316778,2.88,186.94,186.89,1.26892161]
[1761205317979,2.88,186.94,186.91,1.26892161]
[1761205318684,2.85,186.98,186.93,1.26892161]
[1761205318884,2.85,186.98,186.91,1.26892161]
[1761205320994,2.85,186.97,186.91,1.26892161]
[1761205321196,2.85,186.97,186.79,4.97333565]
[1761205321395,2.85,187.01,186.95,1.26892161]
[1761205322696,2.85,187.01,186.97,1.26892161]
[1761205323495,1.26892161,187.06,186.99,1.26892161]
[1761205323700,2.85,187.05,186.99,1.26892161]
[1761205329302,2.85,187.05,187.01,1.26892161]
[1761205329494,4.9834404,187.13,187.01,1.26892161]
[1761205329495,1.26892161,187.09,187.01,1.26892161]
[1761205329700,2.85,187.09,187.03,1.26892161]
[1761205330307,2.85,187.09,186.94,4.97333565]
[1761205330603,2.85,187.09,187.03,1.26892161]
[1761205331202,1.26892161,187.11,186.95,4.97333565]
[1761205331408,2.85,187.1,187.01,1.26892161]
[1761205333008,2.85,187.1,187.03,1.26892161]
[1761205336014,2.85,187.1,187.04,1.26892161]
[1761205338408,1.26892161,187.14,187.06,1.26892161]
[1761205338612,2.85,187.13,187.06,1.26892161]
[1761205339109,44.8,187.15,187.04,1.26892161]
[1761205339110,2.85,187.11,187.04,1.26892161]
[1761205344417,2.85,187.11,187.06,1.26892161]
[1761205344618,2.85,187.14,187.08,1.26892161]
[1761205346320,1.26892161,187.13,187.05,1.26892161]
[1761205346519,2.85,187.14,187.05,1.26892161]
[1761205346720,4.11892161,187.14,187.05,1.26892161]
[1761205347225,1.26892161,187.14,187.05,1.26892161]
[1761205347522,2.85,187.13,187.05,1.26892161]
[1761205347723,1.26892161,187.12,187.05,1.26892161]
[1761205349521,4.12892161,187.12,187.05,1.26892161]
[1761205350422,2.86,187.19,187.05,1.26892161]
[1761205350622,9.9503644,187.31,187.05,1.26892161]
[1761205350623,2.86,187.17,187.07,1.26892161]
[1761205350825,16.04,187.24,187.07,1.26892161]
[1761205350826,4.12892161,187.16,187.07,1.26892161]
[1761205351030,4.12892161,187.16,187.05,4.81]
[1761205351320,1.26892161,187.14,187.07,1.26892161]
[1761205352120,2.86,187.15,187.07,1.26892161]
[1761205352328,1.26892161,187.14,187.06,4.8098]
[1761205352524,1.26892161,187.14,187.06,6.07872161]
[1761205353023,2.86,187.15,187.08,1.26892161]
[1761205353221,1.26892161,187.17,187.08,1.26892161]
[1761205353415,4.12892161,187.17,187.08,1.26892161]
[1761205354417,4.12892161,187.15,186.99,4.97333565]
[1761205354618,1.26892161,187.13,187.05,1.26892161]
[1761205355018,1.26892161,187.13,186.99,4.97333565]
[1761205355223,4.12892161,187.13,187.04,1.26892161]
[1761205355729,2.86,187.13,187.04,1.26892161]
[1761205355926,4.12892161,187.13,187.04,1.26892161]
[1761205356222,1.26892161,187.13,187.05,4.8101]
[1761205356827,2.86,187.15,187.05,4.8101]
[1761205359731,2.86,187.09,186.99,4.8116]
[1761205359928,2.86,187.09,186.96,6.9525273]
[1761205360130,1.97919165,187.11,186.97,4.97333565]
[1761205360431,2.86,187.11,186.99,1.97919165]
[1761205360622,2.86,187.11,187.01,4.8111]
[1761205362024,1.97919165,187.11,186.98,1.97919165]
[1761205362328,2.86,187.1,186.98,1.97919165]
[1761205362630,2.86,187.1,186.99,1.97919165]
[1761205362832,2.86,187.1,187.01,4.811]
[1761205365335,1.97919165,187.09,186.99,4.8117]
[1761205365827,2.86,187.08,186.99,4.8117]
[1761205367235,2.86,187.08,186.99,9.78503565]
[1761205369138,2.86,187.08,187.0,4.97333565]
[1761205370638,2.86,187.08,187.01,4.97333565]
[1761205371234,2.86,187.11,187.01,4.97333565]
[1761205371935,2.86,187.11,187.01,9.78443565]
[1761205372639,2.86,187.11,187.02,4.97333565]
[1761205373839,2.86,187.11,187.03,4.97333565]
[1761205374333,2.86,187.11,187.01,11.42079937]
[1761205374638,2.86,187.11,187.01,4.8111]
[1761205376839,2.86,187.11,187.01,6.79029165]
[1761205377040,2.86,187.11,187.02,4.8109]
[1761205380645,2.86,187.11,187.01,8.58889102]
[1761205380843,2.75,187.15,187.07,1.97919165]
[1761205382537,2.75,187.15,187.07,6.78879165]
[1761205386853,2.75,187.15,187.09,4.8092]
[1761205387152,2.75,187.31,187.13,8.58889102]
[1761205387350,2.75,187.31,187.22,4.8056]
[1761205387651,2.75,187.31,187.2,1.97919165]
[1761205389651,2.75,187.31,187.17,1.97919165]
[1761205389854,2.75,187.28,187.14,1.97919165]
[1761205390156,2.75,187.25,187.14,1.97919165]
[1761205390346,2.75,187.25,187.17,1.97919165]
[1761205391749,2.75,187.25,187.18,4.8069]
[1761205393855,2.75,187.31,187.18,4.8069]
[1761205394749,2.75,187.31,187.2,4.8064]
[1761205396044,2.75,187.31,187.23,1.97919165]
[1761205396250,2.75,187.38,187.27,1.97919165]
[1761205397656,2.75,187.38,187.27,6.78379165]
[1761205398048,2.75,187.38,187.27,1.97919165]
[1761205398252,2.75,187.38,187.31,1.97919165]
[1761205399448,2.75,187.38,187.3,1.97919165]
[1761205401158,2.75,187.38,187.27,1.97919165]
[1761205402960,47.29547299,187.49,187.16,1.97919165]
[1761205402961,2.75,187.33,187.16,1.97919165]
[1761205403164,2.75,187.29,187.16,1.97919165]
[1761205404764,2.73,187.26,187.16,4.8072]
[1761205405958,2.73,187.26,187.13,6.78719165]
[1761205406264,2.73,187.23,187.13,4.808]
[1761205407064,2.73,187.23,187.11,44.68]
[1761205407665,2.73,187.21,187.11,44.68]
[1761205408965,2.84,187.19,187.06,1.97919165]
[1761205409258,2.84,187.19,187.09,1.97919165]
[1761205410166,2.84,187.19,187.12,1.97919165]
[1761205411459,2.84,187.19,187.09,6.78839165]
[1761205411962,2.84,187.33,187.18,3.9583833]
[1761205412163,2.84,187.33,187.29,1.97919165]
[1761205412364,2.84,187.45,187.32,1.97919165]
[1761205412967,16.04,187.42,187.24,4.8052]
[1761205413171,2.84,187.39,187.3,1.97919165]
[1761205413468,2.84,187.39,187.29,1.97919165]
[1761205413773,2.84,187.37,187.28,1.97919165]
[1761205414762,2.84,187.37,187.25,4.8051]
[1761205414961,2.84,187.37,187.24,5.29632894]
[1761205415359,2.84,187.37,187.2,5.29632894]
[1761205415667,2.84,187.32,187.2,5.29632894]
[1761205418174,2.84,187.32,187.18,4.8067]
[1761205418767,2.84,187.32,187.18,8.02708655]
[1761205419164,2.84,187.32,187.18,3.22038655]
[1761205422777,2.84,187.32,187.22,3.22038655]
[1761205423677,2.84,187.32,187.26,3.22038655]
[1761205423873,16.04,187.39,187.26,3.22038655]
[1761205424173,2.84,187.36,187.22,8.02608655]
[1761205424382,25.84,187.42,187.22,8.02608655]
[1761205424383,18.88,187.35,187.22,4.8057]
[1761205424677,2.84,187.34,187.24,3.22038655]
[1761205425576,2.84,187.32,187.2,3.22038655]
[1761205428473,2.84,187.32,187.24,3.22038655]
[1761205429576,2.84,187.32,187.2,3.22038655]
[1761205431378,2.84,187.32,187.23,3.22038655]
[1761205431985,2.84,187.32,187.18,4.91034807]
[1761205432274,2.84,187.32,187.2,3.22038655]
[1761205433775,18.88,187.32,187.2,3.22038655]
[1761205434081,18.88,187.32,187.16,4.91034807]
[1761205434082,2.84,187.3,187.16,3.22038655]
[1761205434984,2.84,187.3,187.16,8.02778655]
[1761205435482,2.84,187.29,187.16,8.02778655]
[1761205438876,18.88,187.29,187.16,8.02778655]
[1761205439083,2.87,187.28,187.16,3.22038655]
[1761205440271,2.87,187.27,187.16,3.22038655]
[1761205440474,2.87,187.26,187.14,4.8079]
[1761205441578,2.87,187.26,187.16,4.8074]
[1761205441981,2.87,187.26,187.16,8.02778655]
[1761205442382,2.87,187.31,187.16,3.22038655]
[1761205442581,2.87,187.31,187.17,4.91034807]
[1761205442780,2.87,187.3,187.23,1.26456406]
[1761205443387,2.87,187.29,187.23,1.26456406]
[1761205444283,2.87,187.29,187.21,1.26456406]
[1761205445086,2.87,187.29,187.23,1.26456406]
[1761205446585,4.13456406,187.32,187.23,1.26456406]
[1761205446991,2.87,187.32,187.25,1.26456406]
[1761205447987,2.87,187.32,187.27,1.26456406]
[1761205448889,2.87,187.32,187.25,1.26456406]
[1761205451782,2.87,187.32,187.27,1.26456406]
[1761205452190,2.87,187.35,187.27,1.26456406]
[1761205452398,2.87,187.35,187.29,1.26456406]
[1761205454195,2.87,187.35,187.27,1.26456406]
[1761205454395,4.13456406,187.34,187.27,1.26456406]
[1761205454598,2.87,187.33,187.27,1.26456406]
[1761205457197,2.87,187.33,187.25,1.26456406]
[1761205458095,4.13456406,187.32,187.25,1.26456406]
[1761205458294,2.87,187.32,187.25,1.26456406]
[1761205458597,4.13456406,187.32,187.25,1.26456406]
[1761205458793,2.87,187.31,187.23,6.07016406]
[1761205459493,2.87,187.29,187.21,6.17491213]
[1761205460193,2.87,187.29,187.21,10.98091213]
[1761205461196,2.87,187.29,187.22,4.8057]
[1761205461396,2.87,187.29,187.23,1.26456406]
[1761205471105,2.87,187.29,187.22,9.71604807]
[1761205471404,2.87,187.29,187.24,1.26456406]
[1761205473003,2.69,187.33,187.26,1.26456406]
[1761205473203,2.69,187.33,187.28,1.26456406]
[1761205476303,2.69,187.33,187.26,4.98437719]
[1761205476611,2.69,187.33,187.28,1.26456406]
[1761205477707,2.69,187.32,187.25,1.26456406]
[1761205478713,2.69,187.32,187.22,6.95986014]
[1761205479907,2.69,187.31,187.21,4.98437719]
[1761205480115,2.69,187.31,187.2,4.98437719]
[1761205481706,2.69,187.31,187.21,4.98437719]
[1761205484417,2.69,187.31,187.22,4.98437719]
[1761205484819,4.97850037,187.35,187.26,6.78018295]
[1761205484820,7.66850037,187.35,187.26,6.78018295]
[1761205485019,2.69,187.38,187.29,6.95986014]
[1761205485609,4.8022,187.37,187.29,4.98437719]
[1761205485825,2.69,187.37,187.28,6.95986014]
[1761205487118,4.8025,187.36,187.29,4.98437719]
[1761205487423,2.69,187.37,187.29,4.98437719]
[1761205487609,4.8028,187.35,187.28,6.95986014]
[1761205489827,4.803,187.34,187.3,1.97548295]
[1761205491226,7.493,187.34,187.3,1.97548295]
[1761205491430,7.493,187.34,187.28,4.98437719]
[1761205491626,7.493,187.34,187.29,1.97548295]
[1761205491831,7.4933,187.33,187.29,1.97548295]
[1761205492230,2.69,187.32,187.27,4.98437719]
[1761205492430,1.97548295,187.39,187.26,6.95986014]
[1761205492431,2.69,187.3,187.26,6.95986014]
[1761205492627,2.69,187.3,187.26,1.97548295]
[1761205493828,2.69,187.29,187.24,4.98437719]
[1761205494025,2.69,187.29,187.23,4.98437719]
[1761205494335,2.69,187.25,187.21,6.95986014]
[1761205494535,2.69,187.25,187.23,4.98437719]
[1761205495237,2.69,187.24,187.23,4.98437719]
[1761205495537,4.8053,187.25,187.23,4.98437719]
[1761205496535,7.4953,187.25,187.23,4.98437719]
[1761205498438,2.69,187.25,187.23,4.98437719]
[1761205498636,2.77,187.32,187.23,4.98437719]
[1761205499639,4.8048,187.27,187.23,4.98437719]
[1761205499938,7.5748,187.27,187.23,4.98437719]
[1761205500136,2.77,187.31,187.23,6.95986014]
[1761205500534,4.8041,187.29,187.26,1.97548295]
[1761205501035,7.5741,187.29,187.26,1.97548295]
[1761205501240,2.77,187.28,187.26,1.97548295]
[1761205503141,4.8041,187.29,187.26,1.97548295]
[1761205503339,7.5741,187.29,187.26,1.97548295]
[1761205503546,7.5737,187.31,187.26,1.97548295]
[1761205503841,2.77,187.34,187.29,1.97548295]
[1761205504045,4.8032,187.33,187.29,1.97548295]
[1761205504344,7.5732,187.33,187.29,1.97548295]
[1761205504940,7.5725,187.36,187.29,1.97548295]
[1761205505343,7.5725,187.36,187.29,6.95986014]
[1761205505636,7.5725,187.36,187.27,4.8044]
[1761205505637,4.8025,187.36,187.32,1.97548295]
[1761205506642,4.8018,187.38,187.32,1.97548295]
[1761205506842,7.5718,187.38,187.35,1.97548295]
[1761205508737,7.5718,187.38,187.31,9.78787719]
[1761205508933,7.5718,187.38,187.34,1.97548295]
[1761205509143,2.77,187.37,187.34,1.97548295]
[1761205509535,4.8013,187.4,187.34,1.97548295]
[1761205509740,7.5713,187.4,187.34,1.97548295]
[1761205509943,2.77,187.39,187.34,1.97548295]
[1761205510636,7.5717,187.39,187.34,1.97548295]
[1761205511041,161.17807526,187.49,187.34,1.97548295]
[1761205511042,2.77,187.44,187.37,1.97548295]
[1761205512049,4.8005,187.43,187.37,1.97548295]
[1761205512346,2.77,187.43,187.38,1.97548295]
[1761205515050,2.77,187.46,187.41,1.97548295]
[1761205515549,2.77,187.49,187.41,1.97548295]
[1761205516654,2.77,187.49,187.4,4.8013]
[1761205516852,2.77,187.49,187.43,1.97548295]
[1761205517146,2.77,187.48,187.42,1.97548295]
[1761205517555,2.77,187.44,187.38,1.97548295]
[1761205519054,2.77,187.44,187.39,1.97548295]
[1761205519256,7.5695,187.47,187.39,1.97548295]
[1761205519864,2.77,187.46,187.39,1.97548295]
[1761205522849,2.77,187.45,187.35,4.98437719]
[1761205523156,2.77,187.45,187.38,1.97548295]
[1761205523351,2.77,187.45,187.37,4.802]
[1761205523545,2.77,187.45,187.38,1.97548295]
[1761205529663,2.77,187.45,187.41,1.97548295]
[1761205529866,4.8,187.46,187.41,1.97548295]
[1761205530056,7.66,187.46,187.41,1.97548295]
[1761205530258,2.86,187.46,187.41,1.97548295]
[1761205531366,4.7993,187.48,187.41,1.97548295]
[1761205531564,7.6593,187.48,187.41,1.97548295]
[1761205532766,2.86,187.47,187.41,1.97548295]
[1761205537170,2.86,187.47,187.42,4.8006]
[1761205538667,4.7983,187.52,187.43,4.8003]
[1761205538973,2.86,187.5,187.43,4.8003]
[1761205539168,2.86,187.5,187.44,1.97548295]
[1761205539968,2.86,187.5,187.41,1.97548295]
[1761205540170,2.86,187.5,187.44,1.97548295]
[1761205540773,2.86,187.5,187.46,1.26152372]
[1761205541269,2.86,187.53,187.49,1.26152372]
[1761205541478,2.86,187.53,187.51,1.26152372]
[1761205542169,2.86,187.57,187.51,1.26152372]
[1761205542374,2.86,187.57,187.52,1.26152372]
[1761205542768,2.86,187.56,187.52,1.26152372]
[1761205543363,2.86,187.56,187.54,1.26152372]
[1761205546871,2.86,187.56,187.52,1.26152372]
[1761205547471,2.86,187.56,187.47,4.7993]
[1761205547678,2.86,187.56,187.5,1.26152372]
[1761205550283,2.86,187.56,187.52,1.26152372]
[1761205550870,2.86,187.57,187.54,1.26152372]
[1761205554482,2.86,187.57,187.55,1.26152372]
[1761205556677,2.86,187.6,187.55,1.26152372]
[1761205556980,2.86,187.6,187.57,1.26152372]
[1761205557886,2.86,187.59,187.55,1.26152372]
[1761205561084,2.86,187.59,187.54,1.26152372]
[1761205561286,16.04,187.67,187.47,4.93885014]
[1761205561287,2.86,187.56,187.47,4.93885014]
[1761205561490,2.86,187.56,187.48,1.26152372]
[1761205561782,2.86,187.56,187.49,1.26152372]
[1761205561975,2.86,187.54,187.49,1.26152372]
[1761205562982,2.86,187.54,187.48,1.26152372]
[1761205563179,2.86,187.54,187.5,1.26152372]
[1761205564081,4.7969,187.58,187.52,1.26152372]
[1761205564279,2.86,187.57,187.52,1.26152372]
[1761205564687,2.86,187.57,187.54,1.26152372]
[1761205564885,2.86,187.57,187.51,4.7985]
[1761205564886,2.86,187.63,187.56,1.26152372]
[1761205565882,2.86,187.61,187.53,4.7978]
[1761205566078,2.86,187.59,187.51,4.93885014]
[1761205566278,2.86,187.59,187.51,1.26152372]
[1761205566478,2.86,187.57,187.51,1.26152372]
[1761205569077,2.86,187.57,187.49,4.7989]
[1761205569282,2.86,187.57,187.5,1.26152372]
[1761205569784,2.86,187.56,187.5,1.26152372]
[1761205570777,2.86,187.56,187.52,1.26152372]
[1761205572783,4.7965,187.59,187.54,1.26152372]
[1761205572982,2.86,187.58,187.54,1.26152372]
[1761205573180,2.86,187.58,187.55,1.26152372]
[1761205575082,2.86,187.58,187.53,4.7978]
[1761205575286,4.796,187.61,187.56,1.26152372]
[1761205575484,2.86,187.6,187.56,1.26152372]
[1761205576185,2.86,187.6,187.57,1.26152372]
[1761205577290,2.86,187.6,187.52,4.93885014]
[1761205577291,2.86,187.6,187.55,1.26152372]
[1761205577687,2.86,187.6,187.54,1.26152372]
[1761205578097,2.86,187.6,187.53,1.26152372]
[1761205579095,7.6563,187.6,187.53,1.26152372]
[1761205579394,2.86,187.59,187.53,1.26152372]
[1761205580888,2.86,187.59,187.52,9.73695014]
[1761205580889,4.95166797,187.67,187.57,1.26152372]
[1761205581094,2.86,187.66,187.59,1.26152372]
[1761205581491,7.655,187.65,187.59,1.26152372]
[1761205581793,7.655,187.65,187.61,1.26152372]
[1761205581994,2.86,187.64,187.61,1.26152372]
[1761205582998,2.86,187.64,187.63,1.26152372]
[1761205584292,44.62,187.71,187.63,2.32152372]
[1761205584598,2.86,187.75,187.7,1.26152372]
[1761205584790,2.86,187.75,187.72,1.26152372]
[1761205585094,2.86,187.75,187.67,4.93885014]
[1761205585294,2.86,187.75,187.66,9.73345014]
[1761205585494,2.86,187.75,187.71,1.26152372]
[1761205587203,2.86,187.75,187.67,4.7941]
[1761205587498,2.86,187.75,187.69,1.26152372]
[1761205588201,2.86,187.72,187.63,1.26152372]
[1761205589192,2.86,187.72,187.61,4.7956]
[1761205589193,2.86,187.72,187.65,1.26152372]
[1761205589592,2.86,187.72,187.61,4.7956]
[1761205589793,2.86,187.72,187.65,1.26152372]
[1761205591399,2.86,187.72,187.69,1.26152372]
[1761205591601,2.73,187.76,187.69,1.26152372]
[1761205593003,2.73,187.75,187.69,1.26152372]
[1761205594604,2.73,187.75,187.67,6.05592372]
[1761205595204,3.99152372,187.75,187.67,6.05592372]
[1761205595800,1.26152372,187.75,187.67,6.05592372]
[1761205596098,2.73,187.72,187.64,4.7949]
[1761205596901,1.26152372,187.71,187.62,6.05712372]
[1761205597103,2.73,187.7,187.62,6.05712372]
[1761205597702,7.5237,187.7,187.62,4.7956]
[1761205597906,3.99152372,187.69,187.62,4.7956]
[1761205598794,1.26152372,187.77,187.68,1.26152372]
[1761205599003,2.73,187.76,187.68,1.26152372]
[1761205599799,4.95166797,187.9,187.7,1.26152372]
[1761205599800,2.73,187.79,187.7,1.26152372]
[1761205600202,2.73,187.79,187.72,6.05462372]
[1761205600398,2.73,187.79,187.67,4.93885014]
[1761205600608,2.73,187.77,187.68,1.26152372]
[1761205600806,2.73,187.77,187.69,4.7937]
[1761205601307,2.73,187.77,187.71,1.96568952]
[1761205601905,2.73,187.77,187.74,1.96568952]
[1761205602706,2.73,187.82,187.74,1.96568952]
[1761205603009,2.73,187.8,187.74,1.96568952]
[1761205607906,2.73,187.79,187.7,4.7936]
[1761205608112,2.73,187.79,187.73,1.96568952]
[1761205609105,2.73,187.77,187.73,1.96568952]
[1761205613113,4.7911,187.8,187.73,1.96568952]
[1761205613412,2.73,187.79,187.73,1.96568952]
[1761205613915,2.73,187.79,187.66,6.90453966]
[1761205614216,2.73,187.79,187.74,1.96568952]
[1761205615217,2.73,187.81,187.77,1.96568952]
[1761205616118,16.0,187.81,187.71,1.96568952]
[1761205616326,2.73,187.8,187.71,1.96568952]
[1761205617019,7.5216,187.78,187.71,6.75898952]
[1761205618220,2.73,187.77,187.71,6.75898952]
[1761205618622,2.73,187.77,187.69,4.7938]
[1761205618826,2.73,187.77,187.71,1.96568952]
[1761205621926,2.73,187.77,187.7,1.96568952]
[1761205622133,2.73,187.77,187.66,6.90453966]
[1761205622526,2.73,187.77,187.69,1.96568952]
[1761205625327,2.73,187.77,187.69,4.93885014]
[1761205625621,2.73,187.77,187.68,4.93885014]
[1761205626033,2.86,187.75,187.65,4.93885014]
[1761205627333,2.86,187.75,187.66,4.93885014]
[1761205627530,2.86,187.75,187.7,1.96568952]
[1761205627828,2.86,187.75,187.7,6.90453966]
[1761205628029,2.86,187.8,187.71,4.93885014]